Cogmind - Beta 11.2 @@@ ROGUE MODE // 2022.12.26 @ 11:39:26 // Winter2022/Polymind Player: dankcaster889 Result: Destroyed by G-34 Mercenary with Small Laser Performance ------------- Evolutions (0) 0 Regions Visited (1) 200 Robots Destroyed (0) 0 Value Destroyed (0) 0 Prototype IDs (0) 0 Alien Tech Used (0) 0 Bonus (370) 370 TOTAL SCORE: 280 Bonus ------- Polymind Skill 370 Cogmind --------- Core Integrity 0/250 Matter 0/0 Energy 24/25 System Corruption 2% Temperature Cool (6) Movement Core (50) Location -10/Materials Parts ------- > --- POWER (1) -------- (None) > --- PROPULSION (2) --- (None) > --- UTILITY (3) ------ Visual Processing Unit Signal Interpreter > --- WEAPON (0) ------- (None) > --- INVENTORY (0) ---- (None) Peak State ------------ > --- POWER ------------ Light Ion Engine > --- PROPULSION ------- Hover Unit Hover Unit > --- UTILITY ---------- Visual Processing Unit Sensor Array Signal Interpreter > --- WEAPON ----------- (None) > --- INVENTORY -------- (None) [Rating: 7] Favorites ----------- Power Light Ion Engine Engine Light Ion Engine Propulsion Hover Unit Hover Unit Hover Unit Utility Visual Processing Unit Device Sensor Array Processor Visual Processing Unit Weapon None Build | -11 -10 ------- Run | Scr Mat Slots Evolved . | . . Power . | . . Propulsion . | . . Utility . | . . Weapon . | . . Parts Attached . | . . Power . | . . Engine . | . . Core . | . . Reactor . | . . Propulsion . | . . Treads . | . . Leg . | . . Wheel . | . . Hover . | . . Flight . | . . Utility . | . . Device . | . . Storage . | . . Processor . | . . Hackware . | . . Protection . | . . Artifact . | . . Weapon . | . . Energy Gun . | . . Energy Cannon . | . . Ballistic Gun . | . . Ballistic Cannon . | . . Launcher . | . . Special Weapon . | . . Impact Weapon . | . . Slashing Weapon . | . . Piercing Weapon . | . . Special Melee Weapon . | . . Unidentified Prototypes . | . . Parts Lost 4 | . 4 Power 1 | . 1 Propulsion 2 | . 2 Utility 1 | . 1 Weapon . | . . Highest Loss Streak 4 | . 4 To Critical Strikes . | . . Average Slot Usage (%) 24 | . 24 Engine 2 | . 2 Hover 6 | . 6 Device 4 | . 4 Processor 12 | . 12 Naked Turns 48 | . 48 Heaviest Build 4 | . 4 Greatest Support 12 | 3 12 Greatest Overweight (x) . | . . Average Overweight (x) . | . . Largest Inventory Capacity . | . . Average Capacity . | . . Most Carried . | . . Average Carried . | . . Final Capacity . | . . Final Carried . | . . Class Distribution -------------------- 55% | Cogmind 44% | Watcher Dominant Class ---------------- Cogmind | -10/Materials Resources | -11 -10 ----------- Run | Scr Mat Matter Collected . | . . Remotely . | . . Salvage Created . | . . Parts . | . . Haulers Intercepted . | . . Recyclers Shooed . | . . Parts Field Recycled . | . . Retrieved Matter . | . . Parts Self-Destructed . | . . Prevented . | . . Kills | -11 -10 ------- Run | Scr Mat Combat Hostiles Destroyed . | . . Classes Destroyed . | . . Best Kill Streak . | . . Combat Bots Only . | . . Max Kills in Single Turn . | . . Gunslinging . | . . Exploded . | . . Melee . | . . Uniques/NPCs Destroyed . | . . Combat | -11 -10 -------- Run | Scr Mat Damage Taken 416 | . 416 Core 259 | . 259 Absorbed by Shields . | . . Core Remaining (%) 100 | 100 . Volleys Fired . | . . Largest . | . . Hottest . | . . Shots Fired . | . . Gun . | . . Cannon . | . . Launcher . | . . Special . | . . Kinetic . | . . Thermal . | . . Explosive . | . . Electromagnetic . | . . Robot Hit Streak . | . . Robot Miss Streak . | . . Penetration Max . | . . Secondary Targets . | . . Shots Hit Robots . | . . Core Hits 3 | . 3 Critical Kills . | . . Critical Parts Destroyed . | . . Critical Strikes . | . . Melee Attacks . | . . Impact . | . . Slashing . | . . Piercing . | . . Sneak Attacks . | . . Combat Hostiles . | . . Follow-up Attacks . | . . Damage Inflicted 45 | . 45 Guns . | . . Cannons . | . . Explosions . | . . Melee . | . . Ramming 45 | . 45 Kinetic . | . . Thermal . | . . Explosive . | . . Electromagnetic . | . . Impact . | . . Slashing . | . . Piercing . | . . Highest Corruption 2 | . 2 Average Corruption 1 | . 1 Corruption Purged . | . . Corruption Blocked . | . . Effects 1 | . 1 Message Errors 1 | . 1 Overload Shots . | . . Overflow Damage . | . . Projectiles . | . . Explosions . | . . Melee . | . . Knockbacks 2 | . 2 Impact 2 | . 2 Kinetic . | . . Secondary . | . . Self-Inflicted Damage 18 | . 18 Shots . | . . Rammed 18 | . 18 Targets Rammed 18 | . 18 Kicked . | . . Crushed . | . . Highest Temperature 7 | . 7 Average Temperature 4 | . 4 Received Heat Transfer 225 | . 225 Siege Activations . | . . Robots Corrupted . | . . Combat Hostiles . | . . Parts Fried . | . . Impact Corruptions . | . . Robots Melted . | . . Combat Hostiles . | . . Parts Melted . | . . Heat Transferred . | . . Parts Sabotaged . | . . Parts Stolen . | . . Parts Stripped . | . . Power Chain Reactions . | . . Missiles Intercepted . | . . Alert | -11 -10 ------- Run | Scr Mat Peak Influence 30 | . 30 Initial . | . . Average 6 | . 7 Maximum Alert Level . | . . Low Security (%) 100 | 100 100 Level 1 . | . . Level 2 . | . . Level 3 . | . . Level 4 . | . . Level 5 . | . . High Security . | . . Max Security . | . . Squads Dispatched 1 | . 1 Investigation . | . . Extermination . | . . Reinforcement 1 | . 1 Assault . | . . Garrison . | . . Intercept . | . . Searches Triggered . | . . Construction Impeded . | . . Haulers Reinforced . | . . Active Scanning Responses . | . . Cargo Convoy Interrupts . | . . Stealth | -11 -10 --------- Run | Scr Mat Distress Signals 1 | . 1 Communications Jammed . | . . Distress Signals . | . . Times Spotted 8 | . 8 Peak Tracking Total 6 | . 6 Tactical Retreats . | . . Traps | -11 -10 ------- Run | Scr Mat Traps Triggered . | . . Indirectly . | . . Trap Hack Attempts . | . . Triggered . | . . Disarmed . | . . Reprogrammed . | . . Reused . | . . Traps Extracted . | . . Installed . | . . Triggered . | . . Machines | -11 -10 ---------- Run | Scr Mat Machines Disabled . | . . Max in Single Turn . | . . Machines Sabotaged . | . . Garrisons Compromised . | . . Overloaded Fab Kills . | . . Hacking | -11 -10 --------- Run | Scr Mat Machines Accessed . | . . Terminals . | . . Fabricators . | . . Repair Stations . | . . Recycling Units . | . . Scanalyzers . | . . Garrison Access . | . . Total Hacks . | . . Successful . | . . Failed . | . . Catastrophic . | . . Database Lockouts . | . . Manual . | . . Terminals . | . . Fabricators . | . . Repair Stations . | . . Recycling Units . | . . Scanalyzers . | . . Garrison Access . | . . Terminal Hacks . | . . Fabricator Hacks . | . . Repair Station Hacks . | . . Recycling Unit Hacks . | . . Scanalyzer . | . . Garrison Access Hacks . | . . Unauthorized Hacks . | . . Terminals . | . . Fabricators . | . . Repair Stations . | . . Recycling Units . | . . Scanalyzers . | . . Garrison Access . | . . Data Cores Recovered . | . . Used . | . . Hacking Detections . | . . Full Trace Events . | . . Feedback Events . | . . Feedback Blocked . | . . Robot Schematics Acquired . | . . Robots Built . | . . Authchips . | . . Time . | . . Total Robot Build Rating . | . . Part Schematics Acquired . | . . Parts Built . | . . Authchips . | . . Time . | . . Total Part Build Rating . | . . Parts Repaired . | . . Time . | . . Parts Recycled . | . . Recycled Matter . | . . Retrieved Matter . | . . Retrieved Components . | . . Parts Scanalyzed . | . . Part Schematics Acquired . | . . Parts Damaged . | . . Bothacking | -11 -10 ------------ Run | Scr Mat Used RIF Installer . | . . Robots Hacked 1 | . 1 Non-combat 1 | . 1 Combat . | . . Robot Hacks Applied 2 | . 2 map_route 1 | . 1 mark_security 1 | . 1 Relay Couplers Released . | . . Fabnet Peak Effective % . | . . Robots Rewired . | . . Allies Hacked . | . . Hacks Repelled . | . . Allies | -11 -10 -------- Run | Scr Mat Total Allies . | . . Largest Group . | . . Highest-Rated Group . | . . Highest-Rated Ally . | . . Total Orders . | . . Ally Attacks . | . . Total Damage . | . . Kills . | . . Allies Corrupted . | . . Allies Melted . | . . Intel | -11 -10 ------- Run | Scr Mat Robot Analysis Total 1 | . 1 Derelict Logs Recovered . | . . Drone Launches . | . . Drone Recoveries . | . . Exploration | -11 -10 ------------- Run | Scr Mat Turns Passed 98 | 12 86 Spaces Moved 158 | 25 133 Core 136 | 25 111 Treads . | . . Legs . | . . Wheels . | . . Hover 22 | . 22 Flight . | . . Fastest Speed 50 | 50 50 Average Speed 50 | 50 51 Slowest Speed 60 | 50 60 Overloaded Moves . | . . Propulsion Burnouts . | . . Robots Hopped . | . . Cave-ins Triggered . | . . Exploration Rate (%) 16 | 3 29 Regions Visited 1 Branch Regions . Pre-discovered Areas . | . . Known Exits Taken . | . . Unknown Exits Taken 1 | 1 . Scrap Searched . | . . Spaces Dug . | . . Terrain Destroyed . | . . Melee . | . . Projectile . | . . AOE . | . . Terrain Rammed . | . . Walls Destroyed . | . . Machines Disabled . | . . Actions | -11 -10 --------- Run | Scr Mat Total 175 | 24 151 Wait . | . . Move 157 | 24 133 Hop . | . . Pick Up . | . . Fast Attach . | . . Attach . | . . Detach . | . . Swap . | . . Drop . | . . Fire . | . . Melee . | . . Ram 18 | . 18 Kick . | . . Crush . | . . Escape Stasis . | . . Rewire . | . . Trap . | . . Miscellaneous . | . . Route ------- -11/Scrapyard -10/Materials (discovered 1 exit: [*Min]) History --------- Turn | Location | Event 5 | -11/Scrapyard | Discovered new exit (range 13) 13 | -11/Scrapyard | Entered Materials 38 | -10/Materials | Discovered new exit (range 15) 90 | -10/Materials | Core integrity fell below 50% 95 | -10/Materials | Core integrity fell below 20% 99 | -10/Materials | Destroyed by G-34 Mercenary with Small Laser Last Messages --------------- 00080_ Slammed into G-47 Trooper. 00081_ Hover Unit destroyed. 00081_ Slammed into G-47 Trooper. 00083_ Sensor Array destroyed. 00083_ Slammed into G-47 Trooper. 00088_ Slammed into G-34 Mercenary. 00089_ G-34 Mercenary knocked back. 00090_ Slammed into G-34 Mercenary. 00091_ K1MDQIJANH1#C 1 AT7PQE Map ----- +----------------------------------------------------+ | ??????????????????????????????????????????? | | ??????????????????????????????????????????? | | ??????????????????????????????????????????? | | ??????????????????????????????????????????? | | ??????????????????????????????????????????? | | ??????????????????????????????????????????? | | ??????????????????????????????????????????? | | ??????????????????????????????????????????? | | ??????????????????????????????????????????? | | ??????????????????????????????????????????? | | ??????????????????????????????????????????? | | ??????????????????????????????????????????? | | ??????????????????????????????????????????? | | ?????????????????????????????????#????????? | | ??????????????????????????#?? +????????? | | ??????????????????????????# #????????? | | ???????????????????????????# #????????? | | #???????????????????????????# #????????? | | #??????????????????????###### ########## | | #???????????????????#### # """ # | | #????????##?????????? # g # "Y" # | | #??###??##!!?????????? u g"T" # # | | #?"!"!"?#! ?????????## ^ # [!! # | | # "!"!" #! ????????##% + [!! # | | # # ######## u # [!! # | | % guw # # | | < g g # # | | %%%%% """w # # | | ## ##+#########+## "" ########## | | ???##???????????# # """ #????????? | | ##??????????????# T *[[# ^ ########?? | | #??????????????# *[ # #? ??? | | ########???????# *[ # """ #?? = ??? | | # #???????# # ! """ #"T ??? | | # """ #???????# *# """ #"" ??? | | # """ #???????####+### + ??? | | + """ ]#??????????# # """????? | | # """ ############ # ""?????? | | # + # ""?????? | | ##########################+####### ????? | | ?????????????????????# #?######???? | | ?????????????????????# #??????????? | | ?????????????????????# #??????????? | | ?????????????????????# #??????????? | | ?????????????????????###########??????????? | | ??????????????????????????????????????????? | | ??????????????????????????????????????????? | | ?????########?????????????????????????????? | | ?????#[[!!//#?????????????????????????????? | | ?????#[[!!//#?????????????????????????????? | +----------------------------------------------------+ Best States ------------- Heat Dissipation 25 Energy Generation 15 Energy Capacity 100 Sight Range 18 Robot Scan Range 14 Terrain Scan Density 10 Evasion (%) 53 Item Schematics ----------------- None Robot Schematics ------------------ None Fabricated ------------ Nothing Alien Tech Used ----------------- None Achievements -------------- None Challenges ------------ None Polymind | -11 -10 ---------- Run | Scr Mat Robots Controlled 1 | . 1 Combat Hostiles . | . . Allies . | . . Classes Controlled 1 | . 1 Average Host Suspicion 100 | . 100 Unsuspicious Activity . | . . Returns to Shadow . | . . Fuzzy Dispatches . | . . Protomatter Created . | . . Used 12 | . 12 Decayed . | . . Highest Spend 12 | . 12 Game ------ Seed FusionSwarmTerrabomb Manual? 0 Play Time 00:02:23 Cumulative 2.7 hours Start 2022.12.26 @ 11:38:06 End 2022.12.26 @ 11:39:26 Sessions 1 Manual Loads 0 Difficulty Rogue Special Mode Winter2022/Polymind Game No. 16 Rogue 16 Adventurer 0 Explorer 0 Win Type - Total 0 Types 0/0/0/0/0/0/0/0/0 Lore% 2 Gallery% 8 Achievement% 10 Wizard Run 0 Options --------- ASCII 0 Keyboard 0 Movement Arrows Keybinds 0 Fullscreen 1 Font 12/Terminus Map View 83x54 Tactical HUD 1 Map Filters NONE Filters NONE Steam 1 RUN: 2964f757-1ce6-43a9-a864-c1ecbae5ad91